fUSD/lending_fUSD_20240426
["ID","MTS","AMOUNT","RATE_DAILY","PERIOD"]
[323690276,1714165871069,-500.0,0.00012328,2]
[323690277,1714165871078,-500.0,0.00012328,2]
[323690278,1714165871090,-500.0,0.00012328,2]
[323690279,1714165871100,-521.34,0.00012328,2]
[323690280,1714165871110,-5617.73,0.00012328,2]
[323690281,1714165871119,-8630.93,0.00012328,2]
[323690282,1714165871128,-1052.38,0.00012328,2]
[323690283,1714165871139,-500.0,0.00012328,2]
[323690284,1714165871149,-1229.82,0.00012328,2]
[323690285,1714165871160,-6867.51,0.00012328,2]
[323690286,1714165871169,-600.27,0.00012328,2]
[323690287,1714165871179,-1794.51,0.00012328,2]
[323690288,1714165871189,-7720.32,0.00012328,2]
[323690289,1714165871198,-1596.74,0.00012328,2]
[323690290,1714165871207,-2414.19,0.00012328,2]
[323690291,1714165871216,-500.0,0.00012328,2]
[323690292,1714165871226,-2546.68,0.00012328,2]
[323690293,1714165871235,-11893.77,0.00012328,2]
[323690294,1714165871244,-500.0,0.00012328,2]
[323690295,1714165871254,-500.0,0.00012328,2]
[323690296,1714165871264,-500.0,0.00012328,2]
[323690297,1714165871273,-1472.99,0.00012328,2]
[323690298,1714165871284,-1714.54,0.00012328,2]
[323690299,1714165871297,-500.0,0.00012328,2]
[323690300,1714165871307,-3379.18,0.00012328,2]
[323690301,1714165871317,-500.0,0.00012328,2]
[323690302,1714165871327,-746.33,0.00012328,2]
[323690303,1714165871336,-1131.17,0.00012328,2]
[323690304,1714165871345,-500.0,0.00012328,2]
[323690305,1714165871354,-1362.32,0.00012328,2]
[323690306,1714165871365,-635.79,0.00012328,2]
[323690307,1714165871376,-1226.03,0.00012328,2]
[323690308,1714165871385,-1261.3,0.00012328,2]
[323690309,1714165871397,-2565.0,0.00012328,2]
[323690310,1714165871407,-626.49,0.00012328,2]
[323690311,1714165871417,-6474.87,0.00012328,2]
[323690312,1714165871428,-5265.92,0.00012328,2]
[323690313,1714165871438,-638.68,0.00012328,2]
[323690314,1714165871448,-7575.76,0.00012328,2]
[323690315,1714165871458,-959.47,0.00012328,2]
[323690316,1714165871467,-500.0,0.00012328,2]
[323690317,1714165871476,-894.84,0.00012328,2]
[323690318,1714165871486,-1029.44,0.00012328,2]
[323690319,1714165871495,-1594.94,0.00012328,2]
[323690320,1714165871504,-500.0,0.00012328,2]
[323690321,1714165871514,-1585.92,0.00012328,2]
[323690322,1714165871523,-927.21,0.00012328,2]
[323690323,1714165871533,-29278.54,0.00012328,2]
[323690324,1714165871542,-598.42,0.00012328,2]
[323690325,1714165871552,-2169.32,0.00012328,2]
[323690326,1714165871562,-500.0,0.00012328,2]
[323690327,1714165871571,-1031.64,0.00012328,2]
[323690328,1714165871581,-3003.77,0.00012328,2]
[323690329,1714165871591,-500.0,0.00012328,2]
[323690330,1714165871600,-500.0,0.00012328,2]
[323690331,1714165871610,-885.97,0.00012328,2]
[323690332,1714165871620,-1452.7,0.00012328,2]
[323690333,1714165871630,-500.0,0.00012328,2]
[323690334,1714165871638,-1299.05,0.00012328,2]
[323690335,1714165871648,-964.95,0.00012328,2]
[323690336,1714165871658,-6953.47,0.00012328,2]
[323690337,1714165871667,-2425.203459,0.00012328,2]
[323690338,1714165871676,-2182.8,0.00012328,2]
[323690339,1714165871686,-598.29,0.00012328,2]
[323690340,1714165871696,-2425.203459,0.00012328,2]
[323690341,1714165871705,-500.0,0.00012328,2]
[323690342,1714165871715,-1173.04,0.00012328,2]
[323690343,1714165871724,-2149.24,0.00012328,2]
[323690344,1714165871734,-831.79,0.00012328,2]
[323690345,1714165871743,-500.0,0.00012328,2]
[323690346,1714165871753,-2022.3,0.00012328,2]
[323690347,1714165871762,-4234.92,0.00012328,2]
[323690348,1714165871772,-2096.72,0.00012328,2]
[323690349,1714165871781,-1713.59,0.00012328,2]
[323690350,1714165871791,-625.39,0.00012328,2]
[323690351,1714165871802,-3159.71,0.00012328,2]
[323690352,1714165871811,-1338.07,0.00012328,2]
[323690353,1714165871820,-15953.33,0.00012328,2]
[323690354,1714165871830,-629.77,0.00012328,2]
[323690355,1714165871840,-500.0,0.00012328,2]
[323690356,1714165871851,-2250.5,0.00012328,2]
[323690357,1714165871861,-8716.91,0.00012328,2]
[323690358,1714165871871,-2333.3,0.00012328,2]
[323690359,1714165871881,-500.0,0.00012328,2]
[323690360,1714165871890,-4686.34,0.00012328,2]
[323690361,1714165871900,-2136.27,0.00012328,2]
[323690362,1714165871910,-1193.75,0.00012328,2]
[323690363,1714165871919,-1350.24,0.00012328,2]
[323690364,1714165871928,-1860.65,0.00012328,2]
[323690365,1714165871938,-1152.1,0.00012328,2]
[323690366,1714165871947,-3493.58,0.00012328,2]
[323690367,1714165871958,-720.21,0.00012328,2]
[323690368,1714165871967,-1609.49,0.00012328,2]
[323690369,1714165871977,-743.96,0.00012328,2]
[323690370,1714165871988,-500.0,0.00012328,2]
[323690371,1714165871997,-4354.83,0.00012328,2]
[323690372,1714165872008,-902.48,0.00012328,2]
[323690373,1714165872017,-771.76,0.00012328,2]
[323690374,1714165872027,-937.47,0.00012328,2]
[323690375,1714165872039,-563.05,0.00012328,2]
[323690376,1714165872048,-1806.19,0.00012328,2]
[323690377,1714165872060,-1571.07,0.00012328,2]
[323690378,1714165872070,-2572.91,0.00012328,2]
[323690379,1714165872079,-1736.03,0.00012328,2]
[323690380,1714165872089,-4550.03,0.00012328,2]
[323690381,1714165872099,-702.48,0.00012328,2]
[323690382,1714165872108,-2483.94,0.00012328,2]
[323690383,1714165872118,-683.53,0.00012328,2]
[323690384,1714165872128,-2118.68,0.00012328,2]
[323690385,1714165872137,-2305.98,0.00012328,2]
[323690386,1714165872146,-2824.94,0.00012328,2]
[323690387,1714165872156,-1519.98,0.00012328,2]
[323690388,1714165872165,-500.0,0.00012328,2]
[323690389,1714165872176,-1443.87,0.00012328,2]
[323690390,1714165872185,-1079.67,0.00012328,2]
[323690391,1714165872195,-5799.26,0.00012328,2]
[323690392,1714165872204,-2700.57,0.00012328,2]
[323690393,1714165872214,-1958.57,0.00012328,2]
[323690394,1714165872223,-500.0,0.00012328,2]
[323690395,1714165872233,-1238.29,0.00012328,2]
[323690396,1714165872243,-2076.33,0.00012328,2]
[323690397,1714165872253,-726.92,0.00012328,2]
[323690398,1714165872264,-3054.76,0.00012328,2]
[323690399,1714165872274,-978.83,0.00012328,2]
[323690400,1714165872284,-2476.96,0.00012328,2]
[323690401,1714165872297,-897.14,0.00012328,2]
[323690402,1714165872307,-1563.14,0.00012328,2]
[323690403,1714165872316,-500.0,0.00012328,2]
[323690404,1714165872325,-1893.28,0.00012328,2]
[323690405,1714165872335,-900.63,0.00012328,2]
[323690406,1714165872346,-1013.72,0.00012328,2]
[323690407,1714165872356,-718.21,0.00012328,2]
[323690408,1714165872368,-555.79,0.00012328,2]
[323690409,1714165872377,-6088.6,0.00012328,2]
[323690410,1714165872387,-500.0,0.00012328,2]
[323690411,1714165872397,-1066.3,0.00012328,2]
[323690412,1714165872407,-505.04,0.00012328,2]
[323690413,1714165872418,-2410.31,0.00012328,2]
[323690414,1714165872430,-820.43,0.00012328,2]
[323690415,1714165872439,-523.49,0.00012328,2]
[323690416,1714165872449,-908.81,0.00012328,2]
[323690417,1714165872459,-1371.32,0.00012328,2]
[323690418,1714165872470,-500.0,0.00012328,2]
[323690419,1714165872479,-2025.12,0.00012328,2]
[323690420,1714165872488,-560.23,0.00012328,2]
[323690421,1714165872498,-500.0,0.00012328,2]
[323690422,1714165872507,-3137.06,0.00012328,2]
[323690423,1714165872516,-4702.4,0.00012328,2]
[323690424,1714165872526,-500.0,0.00012328,2]
[323690425,1714165872535,-500.0,0.00012328,2]
[323690426,1714165872545,-578.95,0.00012328,2]
[323690427,1714165872554,-500.0,0.00012328,2]
[323690428,1714165872564,-500.0,0.00012328,2]
[323690429,1714165872573,-500.0,0.00012328,2]
[323690430,1714165872583,-995.94,0.00012328,2]
[323690431,1714165872592,-2682.02,0.00012328,2]
[323690432,1714165872602,-500.0,0.00012328,2]
[323690433,1714165872611,-500.0,0.00012328,2]
[323690434,1714165872624,-500.0,0.00012328,2]
[323690435,1714165872635,-1815.94,0.00012328,2]
[323690436,1714165872646,-500.0,0.00012328,2]
[323690437,1714165872656,-500.0,0.00012328,2]
[323690438,1714165872665,-3139.98142415,0.00012343,2]
[323690439,1714165872675,-1000.0,0.000125,2]
[323690440,1714165872687,-3139.98142415,0.00012529,2]
[323690441,1714165872697,-500.0,0.00012602,2]
[323690442,1714165872708,-500.0,0.00012602,2]
[323690443,1714165872717,-500.0,0.00012602,2]
[323690444,1714165872728,-327.01134871,0.00012602,2]
[323690445,1714165872738,-500.0,0.00012602,2]
[323690446,1714165872747,-500.0,0.00012602,2]
[323690447,1714165872757,-615.87,0.00012602,2]
[323690448,1714165872767,-500.0,0.00012602,2]
[323690449,1714165872776,-500.0,0.00012602,2]
[323690450,1714165872786,-500.0,0.00012602,2]
[323690451,1714165872795,-500.0,0.00012602,2]
[323690452,1714165872805,-500.0,0.00012602,2]
[323690453,1714165872815,-609.49,0.00012602,2]
[323690454,1714165872825,-500.0,0.00012602,2]
[323690455,1714165872834,-654.47,0.00012602,2]
[323690456,1714165872844,-678.23,0.00012602,2]
[323690457,1714165872854,-613.12,0.00012602,2]
[323690458,1714165872864,-646.77,0.00012602,2]
[323690459,1714165872873,-530.65,0.00012602,2]
[323690460,1714165872882,-880.46,0.00012602,2]
[323690461,1714165872891,-1006.3,0.00012602,2]
[323690462,1714165872901,-513.63387456,0.00012602,2]
[323690463,1714165872911,-500.0,0.00012602,2]
[323690464,1714165872920,-500.0,0.00012602,2]
[323690465,1714165872930,-500.0,0.00012602,2]
[323690466,1714165872940,-1261.56,0.00012602,2]
[323690467,1714165872949,-1360.51,0.00012602,2]
[323690468,1714165872959,-500.0,0.00012602,2]
[323690469,1714165872968,-504.93,0.00012602,2]
[323690470,1714165872977,-1108.07,0.00012602,2]
[323690471,1714165872986,-500.0,0.00012602,2]
[323690472,1714165872996,-822.7,0.00012602,2]
[323690473,1714165873005,-543.02,0.00012602,2]
[323690474,1714165873014,-500.0,0.00012602,2]
[323690475,1714165873024,-1146.38,0.00012602,2]
[323690476,1714165873084,-1304.31,0.00012602,2]
[323690477,1714165873095,-560.91,0.00012602,2]
[323690478,1714165873105,-500.0,0.00012602,2]
[323690479,1714165873114,-500.0,0.00012602,2]
[323690480,1714165873124,-524.59915097,0.00012602,2]
[323690481,1714165873133,-500.0,0.00012602,2]
[323690482,1714165873142,-500.0,0.00012602,2]
[323690483,1714165873152,-921.09,0.00012602,2]
[323690484,1714165873161,-500.0,0.00012602,2]
[323690485,1714165873170,-700.07,0.00012602,2]
[323690486,1714165873179,-500.0,0.00012602,2]
[323690487,1714165873188,-1367.84,0.00012602,2]
[323690488,1714165873199,-748.97,0.00012602,2]
[323690489,1714165873209,-760.98,0.00012602,2]
[323690490,1714165873220,-500.0,0.00012602,2]
[323690491,1714165873229,-500.0,0.00012602,2]
[323690492,1714165873239,-550.92,0.00012602,2]
[323690493,1714165873248,-726.54,0.00012602,2]
[323690494,1714165873259,-1430.99,0.00012602,2]
[323690495,1714165873268,-570.48,0.00012602,2]
[323690496,1714165873278,-676.01,0.00012602,2]
[323690497,1714165873289,-500.0,0.00012602,2]
[323690498,1714165873300,-500.0,0.00012602,2]
[323690499,1714165873309,-500.0,0.00012602,2]
[323690500,1714165873320,-1217.26,0.00012602,2]
[323690501,1714165873330,-500.0,0.00012602,2]
[323690502,1714165873339,-792.02,0.00012602,2]
[323690503,1714165873348,-500.0,0.00012602,2]
[323690504,1714165873358,-500.0,0.00012602,2]
[323690505,1714165873369,-500.0,0.00012602,2]
[323690506,1714165873380,-725.24,0.00012602,2]
[323690507,1714165873389,-500.0,0.00012602,2]
[323690508,1714165873399,-872.88,0.00012602,2]
[323690509,1714165873408,-940.41,0.00012602,2]
[323690510,1714165873419,-500.0,0.00012602,2]
[323690511,1714165873428,-2000.0,0.00012602,2]
[323690512,1714165873437,-509.95,0.00012602,2]
[323690513,1714165873447,-803.02,0.00012602,2]
[323690514,1714165873456,-363.21,0.00012602,2]
[323690515,1714165873466,-500.0,0.00012602,2]
[323690516,1714165873476,-749.95,0.00012602,2]
[323690517,1714165873485,-527.35,0.00012602,2]
[323690518,1714165873494,-490.79061324,0.00012602,2]
[323690519,1714165873503,-500.0,0.00012602,2]
[323690520,1714165873513,-565.11,0.00012602,2]
[323690521,1714165873522,-656.68,0.00012602,2]
[323690522,1714165873531,-500.0,0.00012602,2]
[323690523,1714165873541,-626.53,0.00012602,2]
[323690524,1714165873552,-1008.89,0.00012602,2]
[323690525,1714165873561,-500.0,0.00012602,2]
[323690526,1714165873570,-837.59,0.00012602,2]
[323690527,1714165873580,-525.53,0.00012602,2]
[323690528,1714165873589,-1849.17,0.00012602,2]
[323690529,1714165873598,-565.57,0.00012602,2]
[323690530,1714165873607,-500.0,0.00012602,2]
[323690531,1714165873618,-1095.79,0.00012602,2]
[323690532,1714165873628,-500.0,0.00012602,2]
[323690533,1714165873637,-1100.72,0.00012602,2]
[323690534,1714165873646,-500.0,0.00012602,2]
[323690535,1714165873655,-500.0,0.00012602,2]
[323690536,1714165873665,-500.0,0.00012602,2]
[323690537,1714165873675,-609.39,0.00012602,2]
[323690538,1714165873684,-500.0,0.00012602,2]
[323690539,1714165873693,-1415.44,0.00012602,2]
[323690540,1714165873702,-500.0,0.00012602,2]
[323690541,1714165873711,-721.08,0.00012602,2]
[323690542,1714165873720,-574.71,0.00012602,2]
[323690543,1714165873729,-500.0,0.00012602,2]
[323690544,1714165873738,-500.0,0.00012602,2]
[323690545,1714165873747,-521.34,0.00012602,2]
[323690546,1714165873756,-5617.73,0.00012602,2]
[323690547,1714165873765,-8630.93,0.00012602,2]
[323690548,1714165873774,-1052.38,0.00012602,2]
[323690549,1714165873783,-500.0,0.00012602,2]
[323690550,1714165873792,-1229.82,0.00012602,2]
[323690551,1714165873802,-6867.51,0.00012602,2]
[323690552,1714165873811,-600.27,0.00012602,2]
[323690553,1714165873820,-1794.51,0.00012602,2]
[323690554,1714165873830,-7720.32,0.00012602,2]
[323690555,1714165873839,-1596.74,0.00012602,2]
[323690556,1714165873848,-2414.19,0.00012602,2]
[323690557,1714165873857,-500.0,0.00012602,2]
[323690558,1714165873867,-2546.68,0.00012602,2]
[323690559,1714165873876,-11893.77,0.00012602,2]
[323690560,1714165873885,-500.0,0.00012602,2]
[323690561,1714165873895,-500.0,0.00012602,2]
[323690562,1714165873904,-500.0,0.00012602,2]
[323690563,1714165873914,-1472.99,0.00012602,2]
[323690564,1714165873923,-1714.54,0.00012602,2]
[323690565,1714165873932,-500.0,0.00012602,2]
[323690566,1714165873942,-3379.18,0.00012602,2]
[323690567,1714165873951,-746.33,0.00012602,2]
[323690568,1714165873961,-500.0,0.00012602,2]
[323690569,1714165873970,-1131.17,0.00012602,2]
[323690570,1714165873979,-500.0,0.00012602,2]
[323690571,1714165873988,-1362.32,0.00012602,2]
[323690572,1714165873998,-635.79,0.00012602,2]
[323690573,1714165874007,-1226.03,0.00012602,2]
[323690574,1714165874016,-1261.3,0.00012602,2]
[323690575,1714165874026,-2565.0,0.00012602,2]
[323690576,1714165874036,-626.49,0.00012602,2]
[323690577,1714165874045,-6474.87,0.00012602,2]
[323690578,1714165874055,-5265.92,0.00012602,2]
[323690579,1714165874064,-7575.76,0.00012602,2]
[323690580,1714165874073,-959.47,0.00012602,2]
[323690581,1714165874082,-500.0,0.00012602,2]
[323690582,1714165874091,-894.84,0.00012602,2]
[323690583,1714165874100,-1029.44,0.00012602,2]
[323690584,1714165874109,-1594.94,0.00012602,2]
[323690585,1714165874118,-534.68,0.00012602,2]
[323690586,1714165874128,-1585.92,0.00012602,2]
[323690587,1714165874137,-927.21,0.00012602,2]
[323690588,1714165874145,-29278.54,0.00012602,2]
[323690589,1714165874155,-598.42,0.00012602,2]
[323690590,1714165874164,-2169.32,0.00012602,2]
[323690591,1714165874174,-500.0,0.00012602,2]
[323690592,1714165874183,-1031.64,0.00012602,2]
[323690593,1714165874192,-3003.77,0.00012602,2]
[323690594,1714165874201,-500.0,0.00012602,2]
[323690595,1714165874210,-500.0,0.00012602,2]
[323690596,1714165874219,-885.97,0.00012602,2]
[323690597,1714165874229,-1452.7,0.00012602,2]
[323690598,1714165874238,-500.0,0.00012602,2]
[323690599,1714165874247,-1299.05,0.00012602,2]
[323690600,1714165874256,-964.95,0.00012602,2]
[323690601,1714165874265,-6953.47,0.00012602,2]
[323690602,1714165874274,-2425.203459,0.00012602,2]
[323690603,1714165874286,-598.29,0.00012602,2]
[323690604,1714165874295,-2425.203459,0.00012602,2]
[323690605,1714165874304,-500.0,0.00012602,2]
[323690606,1714165874313,-2182.8,0.00012602,2]
[323690607,1714165874323,-1173.04,0.00012602,2]
[323690608,1714165874333,-2149.24,0.00012602,2]
[323690609,1714165874342,-831.79,0.00012602,2]
[323690610,1714165874351,-500.0,0.00012602,2]
[323690611,1714165874360,-2022.3,0.00012602,2]
[323690612,1714165874372,-4234.92,0.00012602,2]
[323690613,1714165874381,-2096.72,0.00012602,2]
[323690614,1714165874391,-1713.59,0.00012602,2]
[323690615,1714165874401,-625.39,0.00012602,2]
[323690616,1714165874410,-3159.71,0.00012602,2]
[323690617,1714165874420,-1338.07,0.00012602,2]
[323690618,1714165874429,-15953.33,0.00012602,2]
[323690619,1714165874439,-629.77,0.00012602,2]
[323690620,1714165874449,-500.0,0.00012602,2]
[323690621,1714165874462,-2250.5,0.00012602,2]
[323690622,1714165874472,-8716.91,0.00012602,2]
[323690623,1714165874481,-2333.3,0.00012602,2]
[323690624,1714165874490,-219.37754052,0.00012602,2]
[323690625,1714165874499,-4686.34,0.00012602,2]
[323690626,1714165874508,-2136.27,0.00012602,2]
[323690627,1714165874517,-1193.75,0.00012602,2]
[323690628,1714165874526,-1350.24,0.00012602,2]
[323690629,1714165874535,-1860.65,0.00012602,2]
[323690630,1714165874544,-1152.1,0.00012602,2]
[323690631,1714165874553,-3493.58,0.00012602,2]
[323690632,1714165874563,-720.21,0.00012602,2]
[323690633,1714165874574,-1609.49,0.00012602,2]
[323690634,1714165874583,-743.96,0.00012602,2]
[323690635,1714165874592,-452.03,0.00012602,2]
[323690636,1714165874601,-902.48,0.00012602,2]
[323690637,1714165874613,-4354.83,0.00012602,2]
[323690638,1714165874623,-771.76,0.00012602,2]
[323690639,1714165874633,-937.47,0.00012602,2]
[323690640,1714165874644,-563.05,0.00012602,2]
[323690641,1714165874655,-1806.19,0.00012602,2]
[323690642,1714165874665,-1571.07,0.00012602,2]
[323690643,1714165874675,-2572.91,0.00012602,2]
[323690644,1714165874683,-1736.03,0.00012602,2]
[323690645,1714165874692,-4550.03,0.00012602,2]
[323690646,1714165874702,-702.48,0.00012602,2]
[323690647,1714165874712,-2483.94,0.00012602,2]
[323690648,1714165874721,-683.53,0.00012602,2]
[323690649,1714165874731,-2118.68,0.00012602,2]
[323690650,1714165874741,-2305.98,0.00012602,2]
[323690651,1714165874751,-2824.94,0.00012602,2]
[323690652,1714165874761,-1519.98,0.00012602,2]
[323690653,1714165874771,-500.0,0.00012602,2]
[323690654,1714165874780,-1443.87,0.00012602,2]
[323690655,1714165874790,-5799.26,0.00012602,2]
[323690656,1714165874800,-1079.67,0.00012602,2]
[323690657,1714165874809,-2700.57,0.00012602,2]
[323690658,1714165874819,-1958.57,0.00012602,2]
[323690659,1714165874829,-500.0,0.00012602,2]
[323690660,1714165874838,-1238.29,0.00012602,2]
[323690661,1714165874847,-2076.33,0.00012602,2]
[323690662,1714165874856,-726.92,0.00012602,2]
[323690663,1714165874866,-3054.76,0.00012602,2]
[323690664,1714165874876,-978.83,0.00012602,2]
[323690665,1714165874885,-2476.96,0.00012602,2]
[323690666,1714165874894,-897.14,0.00012602,2]
[323690667,1714165874903,-1563.14,0.00012602,2]
[323690668,1714165874913,-500.0,0.00012602,2]
[323690669,1714165874922,-1893.28,0.00012602,2]
[323690670,1714165874932,-900.63,0.00012602,2]
[323690671,1714165874942,-1013.72,0.00012602,2]
[323690672,1714165874951,-718.21,0.00012602,2]
[323690673,1714165874960,-555.79,0.00012602,2]
[323690674,1714165874969,-6088.6,0.00012602,2]
[323690675,1714165874978,-500.0,0.00012602,2]
[323690676,1714165874988,-1066.3,0.00012602,2]
[323690677,1714165874997,-505.04,0.00012602,2]
[323690678,1714165875007,-2410.31,0.00012602,2]
[323690679,1714165875016,-820.43,0.00012602,2]
[323690680,1714165875025,-523.49,0.00012602,2]
[323690681,1714165875034,-908.81,0.00012602,2]
[323690682,1714165875045,-1371.32,0.00012602,2]
[323690683,1714165875055,-500.0,0.00012602,2]
[323690684,1714165875065,-2025.12,0.00012602,2]
[323690685,1714165875075,-560.23,0.00012602,2]
[323690686,1714165875085,-581.79,0.00012602,2]
[323690687,1714165875094,-3137.06,0.00012602,2]
[323690688,1714165875105,-4702.4,0.00012602,2]
[323690689,1714165875114,-500.0,0.00012602,2]
[323690690,1714165875124,-500.0,0.00012602,2]
[323690691,1714165875134,-578.95,0.00012602,2]
[323690692,1714165875143,-500.0,0.00012602,2]
[323690693,1714165875153,-603.19292556,0.00012602,2]
[323690694,1714165875165,-500.0,0.00012602,2]
[323690695,1714165875175,-995.94,0.00012602,2]
[323690696,1714165875184,-2682.02,0.00012602,2]
[323690697,1714165875193,-500.0,0.00012602,2]
[323690698,1714165875202,-500.0,0.00012602,2]
[323690699,1714165875211,-500.0,0.00012602,2]
[323690700,1714165875221,-1815.94,0.00012602,2]
[323690701,1714165875230,-500.0,0.00012602,2]
[323690702,1714165875239,-500.0,0.00012602,2]
[323690703,1714165875248,-390.89,0.00012628,2]
[323690704,1714165875257,-3139.98142415,0.00012714,2]
[323690705,1714165875267,-220.27,0.00012756,2]
[323690706,1714165875277,-1137.0,0.00012767,2]
[323690707,1714165875286,-183.0,0.0001281,2]
[323690708,1714165875300,-1008.7143498,0.0001285,2]
[323690709,1714165875310,-500.0,0.00012876,2]
[323690710,1714165875320,-500.0,0.00012876,2]
[323690711,1714165875331,-500.0,0.00012876,2]
[323690712,1714165875342,-500.0,0.00012876,2]
[323690713,1714165875352,-500.0,0.00012876,2]
[323690714,1714165875362,-615.87,0.00012876,2]
[323690715,1714165875373,-500.0,0.00012876,2]
[323690716,1714165875385,-500.0,0.00012876,2]
[323690717,1714165875394,-500.0,0.00012876,2]
[323690718,1714165875404,-500.0,0.00012876,2]
[323690719,1714165875414,-500.0,0.00012876,2]
[323690720,1714165875425,-609.49,0.00012876,2]
[323690721,1714165875436,-500.0,0.00012876,2]
[323690722,1714165875446,-654.47,0.00012876,2]
[323690723,1714165875456,-678.23,0.00012876,2]
[323690724,1714165875466,-613.12,0.00012876,2]
[323690725,1714165875474,-646.77,0.00012876,2]
[323690726,1714165875484,-530.65,0.00012876,2]
[323690727,1714165875493,-880.46,0.00012876,2]
[323690728,1714165875503,-1006.3,0.00012876,2]
[323690729,1714165875513,-500.0,0.00012876,2]
[323690730,1714165875523,-500.0,0.00012876,2]
[323690731,1714165875534,-500.0,0.00012876,2]
[323690732,1714165875547,-1261.56,0.00012876,2]
[323690733,1714165875557,-1360.51,0.00012876,2]
[323690734,1714165875566,-502.98,0.00012876,2]
[323690735,1714165875577,-504.93,0.00012876,2]
[323690736,1714165875586,-1108.07,0.00012876,2]
[323690737,1714165875596,-500.0,0.00012876,2]
[323690738,1714165875605,-822.7,0.00012876,2]
[323690739,1714165875614,-543.02,0.00012876,2]
[323690740,1714165875624,-500.0,0.00012876,2]
[323690741,1714165875633,-1146.38,0.00012876,2]
[323690742,1714165875643,-1304.31,0.00012876,2]
[323690743,1714165875652,-560.91,0.00012876,2]
[323690744,1714165875662,-500.0,0.00012876,2]
[323690745,1714165875671,-500.0,0.00012876,2]
[323690746,1714165875681,-500.0,0.00012876,2]
[323690747,1714165875691,-500.0,0.00012876,2]
[323690748,1714165875701,-921.09,0.00012876,2]
[323690749,1714165875710,-500.0,0.00012876,2]
[323690750,1714165875718,-700.07,0.00012876,2]
[323690751,1714165875727,-500.0,0.00012876,2]
[323690752,1714165875737,-1367.84,0.00012876,2]
[323690753,1714165875746,-748.97,0.00012876,2]
[323690754,1714165875755,-760.98,0.00012876,2]
[323690755,1714165875764,-241.99446956,0.00012876,2]
[323690756,1714165875773,-500.0,0.00012876,2]
[323690757,1714165875782,-726.54,0.00012876,2]
[323690758,1714165875792,-550.92,0.00012876,2]
[323690759,1714165875801,-1430.99,0.00012876,2]
[323690760,1714165875810,-570.48,0.00012876,2]
[323690761,1714165875819,-676.01,0.00012876,2]
[323690762,1714165875828,-500.0,0.00012876,2]
[323690763,1714165875837,-274.51947218,0.00012876,2]
[323690764,1714165875846,-500.0,0.00012876,2]
[323690765,1714165875855,-1217.26,0.00012876,2]
[323690766,1714165875864,-500.0,0.00012876,2]
[323690767,1714165875873,-792.02,0.00012876,2]
[323690768,1714165875882,-500.0,0.00012876,2]
[323690769,1714165875891,-500.0,0.00012876,2]
[323690770,1714165875900,-500.0,0.00012876,2]
[323690771,1714165875909,-725.24,0.00012876,2]
[323690772,1714165875919,-500.0,0.00012876,2]
[323690773,1714165875928,-872.88,0.00012876,2]
[323690774,1714165875937,-940.41,0.00012876,2]
[323690775,1714165875946,-500.0,0.00012876,2]